[Event "*** Titled Tuesday 3|2 Blitz"]
[Site "Chess.com"]
[Date "2015.11.03"]
[Round "5"]
[White "motivated_bishop"]
[Black "Rickstereo"]
[Result "1-0"]
[WhiteElo "2192"]
[BlackElo "2088"]
[TimeControl "180+2"]
[EndTime "11:59:01 PST"]
[Termination "motivated_bishop won by resignation"]

1. d4 {[%clk 0:03:01.9]} 1... Nf6 {[%clk 0:03:00.2]} 2. c4 {[%clk 0:03:03.1]}
2... c5 {[%clk 0:02:54]} 3. d5 {[%clk 0:03:04.2]} 3... b5 {[%clk 0:02:55.1]} 4.
cxb5 {[%clk 0:03:05.5]} 4... a6 {[%clk 0:02:56.4]} 5. bxa6 {[%clk 0:03:06.8]}
5... g6 {[%clk 0:02:57.1]} 6. Nc3 {[%clk 0:03:08]} 6... Bg7 {[%clk 0:02:58.3]}
7. e4 {[%clk 0:03:07.9]} 7... d6 {[%clk 0:02:59.5]} 8. Nf3 {[%clk 0:03:08.6]}
8... O-O {[%clk 0:03:00.5]} 9. a4 {[%clk 0:03:06.4]} 9... Nxa6 {[%clk
0:02:56.2]} 10. Be2 {[%clk 0:03:06]} 10... Nb4 {[%clk 0:02:57.3]} 11. O-O {[%clk
0:03:06.7]} 11... Ba6 {[%clk 0:02:55.5]} 12. Nd2 {[%clk 0:03:01.2]} 12... Bxe2
{[%clk 0:02:23.3]} 13. Nxe2 {[%clk 0:02:56.1]} 13... Qa5 {[%clk 0:01:50.8]} 14.
Nc3 {[%clk 0:02:52.4]} 14... Qa6 {[%clk 0:01:48.1]} 15. Nb5 {[%clk 0:02:49.3]}
15... Rab8 {[%clk 0:01:32.5]} 16. Ra3 {[%clk 0:02:15]} 16... Nd7 {[%clk
0:01:20.1]} 17. Nc4 {[%clk 0:02:14.7]} 17... Nb6 {[%clk 0:01:03]} 18. b3 {[%clk
0:02:10]} 18... Rfd8 {[%clk 0:00:22.8]} 19. Bd2 {[%clk 0:02:05.9]} 19... Nd3
{[%clk 0:00:11.9]} 20. Qe2 {[%clk 0:01:54.3]} 20... Ne5 {[%clk 0:00:12]} 21. Na5
{[%clk 0:01:31.1]} 21... c4 {[%clk 0:00:07.3]} 22. Nxc4 {[%clk 0:01:05.2]} 22...
Nbxc4 {[%clk 0:00:08.1]} 23. bxc4 {[%clk 0:01:06.3]} 23... Rbc8 {[%clk
0:00:08.8]} 24. Rc1 {[%clk 0:01:00.9]} 24... Qb6 {[%clk 0:00:09.7]} 25. a5
{[%clk 0:00:58.6]} 25... Qc5 {[%clk 0:00:09.1]} 26. Rac3 {[%clk 0:00:55.4]}
26... Qb4 {[%clk 0:00:07]} 27. R3c2 {[%clk 0:00:53.9]} 27... Nd7 {[%clk
0:00:07.3]} 1-0

[Event "*** Titled Tuesday 3|2 Blitz"]
[Site "Chess.com"]
[Date "2015.11.03"]
[Round "5"]
[White "joppie2"]
[Black "GregShahade"]
[Result "0-1"]
[WhiteElo "2323"]
[BlackElo "2319"]
[TimeControl "180+2"]
[EndTime "11:59:08 PST"]
[Termination "GregShahade won by resignation"]

1. e4 {[%clk 0:02:57.4]} 1... c5 {[%clk 0:03:00]} 2. Nf3 {[%clk 0:02:50.7]} 2...
g6 {[%clk 0:03:00]} 3. d4 {[%clk 0:02:51.4]} 3... cxd4 {[%clk 0:03:01.9]} 4.
Nxd4 {[%clk 0:02:53.3]} 4... Nc6 {[%clk 0:02:57.4]} 5. c4 {[%clk 0:02:53.9]}
5... Nf6 {[%clk 0:02:52.8]} 6. Nc3 {[%clk 0:02:52.4]} 6... d6 {[%clk 0:02:49.9]}
7. Be2 {[%clk 0:02:52.5]} 7... Nxd4 {[%clk 0:02:49.9]} 8. Qxd4 {[%clk
0:02:53.1]} 8... Bg7 {[%clk 0:02:51.5]} 9. Be3 {[%clk 0:02:54.1]} 9... O-O
{[%clk 0:02:52.3]} 10. Qd2 {[%clk 0:02:55.3]} 10... Be6 {[%clk 0:02:52.1]} 11.
O-O {[%clk 0:02:56]} 11... Qa5 {[%clk 0:02:49.7]} 12. f3 {[%clk 0:02:55.2]}
12... Rfc8 {[%clk 0:02:49.6]} 13. b3 {[%clk 0:02:35.7]} 13... a6 {[%clk
0:02:17.5]} 14. Rab1 {[%clk 0:02:31.3]} 14... Qb4 {[%clk 0:01:45.7]} 15. Rfc1
{[%clk 0:02:11.2]} 15... Nd7 {[%clk 0:01:37.3]} 16. Qb2 {[%clk 0:01:52.3]} 16...
b5 {[%clk 0:01:19]} 17. a3 {[%clk 0:01:44.6]} 17... Qa5 {[%clk 0:01:19.3]} 18.
b4 {[%clk 0:01:43.7]} 18... Qc7 {[%clk 0:01:09.1]} 19. c5 {[%clk 0:01:36.6]}
19... dxc5 {[%clk 0:01:06.8]} 20. bxc5 {[%clk 0:01:35.3]} 20... Nxc5 {[%clk
0:01:07]} 21. Nd5 {[%clk 0:01:36.6]} 21... Bxb2 {[%clk 0:00:38.3]} 22. Rxb2
{[%clk 0:01:19.6]} 22... Bxd5 {[%clk 0:00:35]} 23. Rxc5 {[%clk 0:01:20.1]} 23...
Qxc5 {[%clk 0:00:29.8]} 24. Bxc5 {[%clk 0:01:19.5]} 24... Rxc5 {[%clk
0:00:31.7]} 25. exd5 {[%clk 0:01:21.4]} 25... Rxd5 {[%clk 0:00:32.4]} 26. Kf2
{[%clk 0:01:21.4]} 26... Rc8 {[%clk 0:00:32.8]} 27. f4 {[%clk 0:01:20.9]} 27...
Rc3 {[%clk 0:00:32.9]} 28. Ra2 {[%clk 0:01:16.2]} 28... Rdc5 {[%clk 0:00:31.7]}
29. a4 {[%clk 0:01:04.9]} 29... Rc2 {[%clk 0:00:27]} 30. Ra3 {[%clk 0:00:58.6]}
30... b4 {[%clk 0:00:27.3]} 31. Rd3 {[%clk 0:00:59.2]} 31... a5 {[%clk
0:00:25.3]} 32. Rd7 {[%clk 0:00:57.8]} 32... Rc6 {[%clk 0:00:18.7]} 33. Rb7
{[%clk 0:00:57.6]} 33... Re6 {[%clk 0:00:18.8]} 0-1

[Event "*** Titled Tuesday 3|2 Blitz"]
[Site "Chess.com"]
[Date "2015.11.03"]
[Round "5"]
[White "pKiLz5Rn9b"]
[Black "Mugzyyy"]
[Result "0-1"]
[WhiteElo "2444"]
[BlackElo "2480"]
[TimeControl "180+2"]
[EndTime "11:59:13 PST"]
[Termination "Mugzyyy won by checkmate"]

1. e4 {[%clk 0:03:01.9]} 1... c5 {[%clk 0:03:00.6]} 2. c3 {[%clk 0:03:03]} 2...
d6 {[%clk 0:03:00.4]} 3. d4 {[%clk 0:03:03.6]} 3... Nf6 {[%clk 0:03:02.1]} 4.
Bd3 {[%clk 0:03:04.4]} 4... e5 {[%clk 0:03:02.4]} 5. Nf3 {[%clk 0:03:00]} 5...
Nc6 {[%clk 0:03:02.3]} 6. d5 {[%clk 0:02:50.9]} 6... Ne7 {[%clk 0:03:03.3]} 7.
a4 {[%clk 0:02:49]} 7... g6 {[%clk 0:03:02]} 8. h3 {[%clk 0:02:49.5]} 8... Bg7
{[%clk 0:03:02]} 9. g3 {[%clk 0:02:50.9]} 9... O-O {[%clk 0:03:03.5]} 10. Na3
{[%clk 0:02:52]} 10... a6 {[%clk 0:03:00]} 11. Nc4 {[%clk 0:02:50.1]} 11... b6
{[%clk 0:03:00.7]} 12. a5 {[%clk 0:02:50.4]} 12... b5 {[%clk 0:03:01.7]} 13. Nb6
{[%clk 0:02:51.7]} 13... Rb8 {[%clk 0:03:03.4]} 14. Be3 {[%clk 0:02:34.1]} 14...
Nd7 {[%clk 0:02:58.5]} 15. Nxc8 {[%clk 0:02:29]} 15... Qxc8 {[%clk 0:02:57.8]}
16. g4 {[%clk 0:02:29.3]} 16... c4 {[%clk 0:02:40.5]} 17. Bc2 {[%clk 0:02:30.2]}
17... Nc5 {[%clk 0:02:42.2]} 18. Qe2 {[%clk 0:02:18.1]} 18... f5 {[%clk
0:02:42]} 19. gxf5 {[%clk 0:02:11.8]} 19... gxf5 {[%clk 0:02:42.7]} 20. Bxc5
{[%clk 0:02:13.1]} 20... Qxc5 {[%clk 0:02:43.1]} 21. Ng5 {[%clk 0:02:13.6]}
21... fxe4 {[%clk 0:02:42.8]} 22. Ne6 {[%clk 0:02:13.3]} 22... Qxd5 {[%clk
0:02:43.2]} 23. Nxf8 {[%clk 0:02:14.6]} 23... e3 {[%clk 0:02:32.4]} 24. Bxh7+
{[%clk 0:01:26.4]} 24... Kh8 {[%clk 0:02:31.1]} 25. f3 {[%clk 0:01:26.8]} 25...
Rxf8 {[%clk 0:02:27.2]} 26. Be4 {[%clk 0:01:27.6]} 26... Qe6 {[%clk 0:02:28.2]}
27. f4 {[%clk 0:00:52.8]} 27... exf4 {[%clk 0:02:28.3]} 28. Qh5+ {[%clk
0:00:53.6]} 28... Bh6 {[%clk 0:02:27.1]} 29. Rg1 {[%clk 0:00:35.7]} 29... f3
{[%clk 0:02:27.3]} 30. Bxf3 {[%clk 0:00:33.5]} 30... e2 {[%clk 0:02:18.7]} 31.
Be4 {[%clk 0:00:12.3]} 31... Qf6 {[%clk 0:01:40.9]} 32. Bf3 {[%clk 0:00:07.6]}
32... Qe6 {[%clk 0:01:29.7]} 33. Be4 {[%clk 0:00:08.5]} 33... d5 {[%clk
0:01:31.2]} 34. Rg6 {[%clk 0:00:04.4]} 34... Nxg6 {[%clk 0:01:30.1]} 35. Qxh6+
{[%clk 0:00:04.8]} 35... Kg8 {[%clk 0:01:31.7]} 36. Bxd5 {[%clk 0:00:03.1]}
36... Rf1+ {[%clk 0:01:29.9]} 37. Kd2 {[%clk 0:00:04.5]} 37... Qxd5+ {[%clk
0:01:31.2]} 38. Kc2 {[%clk 0:00:04.8]} 38... Qd3# {[%clk 0:01:32.6]} 0-1

[Event "*** Titled Tuesday 3|2 Blitz"]
[Site "Chess.com"]
[Date "2015.11.03"]
[Round "5"]
[White "stepanosinovsky"]
[Black "pedromartinez91"]
[Result "0-1"]
[WhiteElo "2245"]
[BlackElo "2192"]
[TimeControl "180+2"]
[EndTime "11:59:20 PST"]
[Termination "pedromartinez91 won by resignation"]

1. g3 {[%clk 0:03:01.9]} 1... d5 {[%clk 0:02:58.3]} 2. Bg2 {[%clk 0:03:03.8]}
2... Nc6 {[%clk 0:02:58.9]} 3. Nf3 {[%clk 0:03:05.7]} 3... e5 {[%clk 0:02:59.6]}
4. d3 {[%clk 0:03:01.3]} 4... h6 {[%clk 0:02:59.9]} 5. O-O {[%clk 0:03:01.1]}
5... Nf6 {[%clk 0:02:59.1]} 6. c4 {[%clk 0:03:01.5]} 6... Be6 {[%clk 0:02:57.9]}
7. cxd5 {[%clk 0:03:02.3]} 7... Nxd5 {[%clk 0:02:58.6]} 8. Nc3 {[%clk
0:03:02.9]} 8... Be7 {[%clk 0:02:58.4]} 9. d4 {[%clk 0:02:44.1]} 9... Nxc3
{[%clk 0:02:30.5]} 10. bxc3 {[%clk 0:02:44.3]} 10... e4 {[%clk 0:02:30.2]} 11.
Nd2 {[%clk 0:02:37.2]} 11... f5 {[%clk 0:02:30.3]} 12. Rb1 {[%clk 0:01:59.1]}
12... Rb8 {[%clk 0:02:27.5]} 13. e3 {[%clk 0:01:21.7]} 13... Bxa2 {[%clk
0:02:25.8]} 14. Qh5+ {[%clk 0:00:45.4]} 14... Bf7 {[%clk 0:02:22.2]} 15. Qxf5
{[%clk 0:00:46.2]} 15... O-O {[%clk 0:02:22.8]} 16. Bxe4 {[%clk 0:00:45.3]}
16... g6 {[%clk 0:02:23.5]} 17. Qh3 {[%clk 0:00:43]} 17... Kg7 {[%clk
0:02:23.3]} 18. Nf3 {[%clk 0:00:41.7]} 18... Bc4 {[%clk 0:02:17.9]} 19. Rd1
{[%clk 0:00:39.3]} 19... Be2 {[%clk 0:02:17.5]} 20. Qg4 {[%clk 0:00:37.8]} 20...
Qd6 {[%clk 0:02:16.7]} 21. Ba3 {[%clk 0:00:23.4]} 21... Qf6 {[%clk 0:02:15.8]}
22. Bxe7 {[%clk 0:00:20]} 22... Nxe7 {[%clk 0:02:16]} 23. Qd7 {[%clk 0:00:13]}
23... Bxf3 {[%clk 0:01:59.7]} 24. Bxf3 {[%clk 0:00:13.6]} 24... Qxf3 {[%clk
0:01:59.8]} 25. Qxe7+ {[%clk 0:00:12.6]} 25... Rf7 {[%clk 0:02:01.4]} 26. Qe5+
{[%clk 0:00:13.5]} 26... Kh7 {[%clk 0:02:02.7]} 27. Rd2 {[%clk 0:00:14]} 27...
Rbf8 {[%clk 0:02:00.2]} 28. Rxb7 {[%clk 0:00:13.4]} 28... Qxb7 {[%clk
0:01:59.7]} 29. e4 {[%clk 0:00:14.7]} 29... Qb1+ {[%clk 0:01:58.5]} 30. Kg2
{[%clk 0:00:15.6]} 30... Qe1 {[%clk 0:02:00.1]} 31. Ra2 {[%clk 0:00:13.5]} 31...
Rxf2+ {[%clk 0:01:59.3]} 32. Rxf2 {[%clk 0:00:13.3]} 32... Qxf2+ {[%clk
0:02:00.3]} 33. Kh3 {[%clk 0:00:15.2]} 33... Qf1+ {[%clk 0:02:01.1]} 34. Kg4
{[%clk 0:00:14.3]} 34... h5+ {[%clk 0:01:58.8]} 35. Kg5 {[%clk 0:00:13.6]} 35...
Rf7 {[%clk 0:01:55.5]} 36. Qe6 {[%clk 0:00:11.6]} 36... Qc1+ {[%clk 0:01:53.2]}
37. Kh4 {[%clk 0:00:11.9]} 37... Kg7 {[%clk 0:01:46.5]} 38. Qe5+ {[%clk
0:00:12]} 38... Kh7 {[%clk 0:01:47.4]} 39. Qe6 {[%clk 0:00:13.2]} 39... Rg7
{[%clk 0:01:48.6]} 40. c4 {[%clk 0:00:11.4]} 40... Qd2 {[%clk 0:01:47.6]} 41. h3
{[%clk 0:00:06.8]} 41... Qxd4 {[%clk 0:01:48.5]} 42. c5 {[%clk 0:00:07.4]} 42...
Qd8+ {[%clk 0:01:46.5]} 0-1

[Event "*** Titled Tuesday 3|2 Blitz"]
[Site "Chess.com"]
[Date "2015.11.03"]
[Round "5"]
[White "PowerThinking2650"]
[Black "1random"]
[Result "0-1"]
[WhiteElo "2093"]
[BlackElo "1928"]
[TimeControl "180+2"]
[EndTime "11:59:38 PST"]
[Termination "1random won by resignation"]

1. e4 {[%clk 0:03:01.9]} 1... c5 {[%clk 0:02:59.5]} 2. Nf3 {[%clk 0:03:02.4]}
2... d6 {[%clk 0:03:00.3]} 3. g3 {[%clk 0:03:02.3]} 3... g6 {[%clk 0:03:00.6]}
4. Bg2 {[%clk 0:03:03.1]} 4... Bg7 {[%clk 0:03:02.2]} 5. O-O {[%clk 0:03:04.1]}
5... Nf6 {[%clk 0:03:03]} 6. Nc3 {[%clk 0:03:03.9]} 6... O-O {[%clk 0:03:03.8]}
7. d3 {[%clk 0:03:04.8]} 7... Nc6 {[%clk 0:03:04.6]} 8. h3 {[%clk 0:03:05.2]}
8... Rb8 {[%clk 0:03:05.5]} 9. a4 {[%clk 0:03:05.6]} 9... a6 {[%clk 0:03:06.4]}
10. Be3 {[%clk 0:03:06]} 10... b5 {[%clk 0:03:07.3]} 11. axb5 {[%clk 0:03:07.2]}
11... axb5 {[%clk 0:03:09.2]} 12. Qd2 {[%clk 0:03:08.6]} 12... b4 {[%clk
0:03:09]} 13. Nd1 {[%clk 0:03:09.3]} 13... Nd7 {[%clk 0:03:09.3]} 14. Bh6 {[%clk
0:03:08.4]} 14... Qb6 {[%clk 0:03:05.9]} 15. Bxg7 {[%clk 0:03:07.5]} 15... Kxg7
{[%clk 0:03:07.8]} 16. Nh4 {[%clk 0:03:05.5]} 16... e5 {[%clk 0:03:00.4]} 17.
Ne3 {[%clk 0:03:05.1]} 17... Nf6 {[%clk 0:03:00.4]} 18. Nef5+ {[%clk 0:02:51.2]}
18... gxf5 {[%clk 0:02:58.1]} 19. Qg5+ {[%clk 0:02:50.7]} 19... Kh8 {[%clk
0:02:58.3]} 20. Qxf6+ {[%clk 0:02:51.5]} 20... Kg8 {[%clk 0:02:59.9]} 21. exf5
{[%clk 0:02:45.1]} 21... Nd4 {[%clk 0:02:53.5]} 22. Be4 {[%clk 0:02:27.4]} 22...
Bb7 {[%clk 0:02:52.4]} 23. Qg5+ {[%clk 0:02:20.2]} 23... Kh8 {[%clk 0:02:53.5]}
24. f6 {[%clk 0:02:21.1]} 24... Rg8 {[%clk 0:02:36.6]} 25. Qh5 {[%clk
0:02:20.8]} 25... Bxe4 {[%clk 0:02:36.9]} 26. dxe4 {[%clk 0:02:21.6]} 26... Qb7
{[%clk 0:02:25.8]} 27. f3 {[%clk 0:01:48.6]} 27... Nxc2 {[%clk 0:02:20.4]} 28.
Kh2 {[%clk 0:01:31.7]} 28... Nxa1 {[%clk 0:02:19.1]} 29. Rxa1 {[%clk 0:01:32.4]}
29... Ra8 {[%clk 0:02:09.8]} 30. Rxa8 {[%clk 0:01:27.7]} 30... Rxa8 {[%clk
0:02:11.7]} 31. Nf5 {[%clk 0:01:25.3]} 31... Qd7 {[%clk 0:01:55.2]} 32. Nh6
{[%clk 0:01:19.5]} 32... Qe8 {[%clk 0:01:17.6]} 33. Nxf7+ {[%clk 0:01:05.7]}
33... Kg8 {[%clk 0:01:18.6]} 34. Nh6+ {[%clk 0:01:01.8]} 34... Kh8 {[%clk
0:01:17.2]} 35. f7 {[%clk 0:00:31.8]} 35... Qe6 {[%clk 0:01:11.9]} 36. Qg5
{[%clk 0:00:18.7]} 36... Qg6 {[%clk 0:01:09]} 37. Qe7 {[%clk 0:00:19.5]} 37...
Qxh6 {[%clk 0:01:08.3]} 38. f4 {[%clk 0:00:13.4]} 38... exf4 {[%clk 0:01:06.5]}
39. g4 {[%clk 0:00:13.1]} 39... f3 {[%clk 0:01:04.2]} 40. g5 {[%clk 0:00:13.8]}
40... Qg7 {[%clk 0:01:05.1]} 41. Kg3 {[%clk 0:00:13.2]} 41... Qe5+ {[%clk
0:01:05.6]} 0-1

[Event "*** Titled Tuesday 3|2 Blitz"]
[Site "Chess.com"]
[Date "2015.11.03"]
[Round "5"]
[White "eltenedor"]
[Black "kleinebeer98"]
[Result "1-0"]
[WhiteElo "1961"]
[BlackElo "2210"]
[TimeControl "180+2"]
[EndTime "11:59:39 PST"]
[Termination "eltenedor won by checkmate"]

1. c4 {[%clk 0:03:01.9]} 1... Nf6 {[%clk 0:02:55.7]} 2. g3 {[%clk 0:03:02.1]}
2... c6 {[%clk 0:02:54.5]} 3. Nf3 {[%clk 0:03:02.1]} 3... d5 {[%clk 0:02:54.4]}
4. d4 {[%clk 0:03:02.1]} 4... g6 {[%clk 0:02:55.7]} 5. Bg2 {[%clk 0:03:00.9]}
5... Bg7 {[%clk 0:02:56.5]} 6. cxd5 {[%clk 0:02:54.6]} 6... cxd5 {[%clk
0:02:48.4]} 7. Ne5 {[%clk 0:02:54.3]} 7... O-O {[%clk 0:02:47.9]} 8. O-O {[%clk
0:02:54.3]} 8... Nc6 {[%clk 0:02:46.4]} 9. f4 {[%clk 0:02:52.6]} 9... Ne4 {[%clk
0:02:44.8]} 10. Nc3 {[%clk 0:02:46.6]} 10... Bf5 {[%clk 0:02:33.8]} 11. Nxe4
{[%clk 0:02:43.5]} 11... Bxe4 {[%clk 0:02:33.3]} 12. Bxe4 {[%clk 0:02:43.1]}
12... dxe4 {[%clk 0:02:35.2]} 13. Nxc6 {[%clk 0:02:40.1]} 13... bxc6 {[%clk
0:02:37.1]} 14. Be3 {[%clk 0:02:37.1]} 14... Rb8 {[%clk 0:02:32.8]} 15. Qd2
{[%clk 0:02:28.3]} 15... c5 {[%clk 0:02:27.3]} 16. Rfd1 {[%clk 0:02:14.2]} 16...
cxd4 {[%clk 0:02:06.2]} 17. Bxd4 {[%clk 0:02:14.4]} 17... Bxd4+ {[%clk
0:01:25.6]} 18. Qxd4 {[%clk 0:02:14.2]} 18... Qxd4+ {[%clk 0:01:16.8]} 19. Rxd4
{[%clk 0:02:14]} 19... Rxb2 {[%clk 0:01:18.7]} 20. Rxe4 {[%clk 0:02:09.9]} 20...
e6 {[%clk 0:01:20.4]} 21. Kf2 {[%clk 0:02:03.1]} 21... Rc8 {[%clk 0:01:18.2]}
22. a4 {[%clk 0:01:54]} 22... Kf8 {[%clk 0:01:10.8]} 23. Rd1 {[%clk 0:01:43.8]}
23... Ke7 {[%clk 0:01:11.9]} 24. g4 {[%clk 0:01:31.2]} 24... Kf6 {[%clk
0:00:49.9]} 25. Rd7 {[%clk 0:01:27]} 25... a5 {[%clk 0:00:42.4]} 26. Re5 {[%clk
0:00:52.6]} 26... Rc4 {[%clk 0:00:33.6]} 27. g5+ {[%clk 0:00:37.8]} 27... Kg7
{[%clk 0:00:33.9]} 28. Rxe6 {[%clk 0:00:27.4]} 28... Rxf4+ {[%clk 0:00:33.4]}
29. Ke3 {[%clk 0:00:21.2]} 29... Rxa4 {[%clk 0:00:33.9]} 30. Rf6 {[%clk
0:00:17.8]} 30... Raa2 {[%clk 0:00:21.8]} 31. Rdxf7+ {[%clk 0:00:13.6]} 31...
Kg8 {[%clk 0:00:23.1]} 32. Rf8+ {[%clk 0:00:14.1]} 32... Kg7 {[%clk 0:00:24.5]}
33. R6f7# {[%clk 0:00:14.9]} 1-0

[Event "*** Titled Tuesday 3|2 Blitz"]
[Site "Chess.com"]
[Date "2015.11.03"]
[Round "5"]
[White "Rating-Schmating"]
[Black "ilmago"]
[Result "0-1"]
[WhiteElo "1934"]
[BlackElo "1917"]
[TimeControl "180+2"]
[EndTime "12:00:16 PST"]
[Termination "ilmago won by checkmate"]

1. e4 {[%clk 0:03:01.9]} 1... c5 {[%clk 0:02:59.7]} 2. Nf3 {[%clk 0:03:02.4]}
2... d6 {[%clk 0:02:59.8]} 3. d4 {[%clk 0:03:02.8]} 3... cxd4 {[%clk 0:03:01.7]}
4. Nxd4 {[%clk 0:03:03.7]} 4... Nf6 {[%clk 0:03:03]} 5. Nc3 {[%clk 0:03:04.3]}
5... e6 {[%clk 0:03:02.4]} 6. Be3 {[%clk 0:03:02.7]} 6... a6 {[%clk 0:03:02.8]}
7. a4 {[%clk 0:03:03.1]} 7... Be7 {[%clk 0:03:02.9]} 8. Be2 {[%clk 0:03:03.5]}
8... O-O {[%clk 0:03:03.3]} 9. O-O {[%clk 0:03:04.5]} 9... Nc6 {[%clk 0:03:04]}
10. Kh1 {[%clk 0:03:04]} 10... Qc7 {[%clk 0:03:01.6]} 11. f4 {[%clk 0:03:04.3]}
11... Re8 {[%clk 0:03:02.3]} 12. Nxc6 {[%clk 0:03:04.2]} 12... bxc6 {[%clk
0:03:01.4]} 13. Bf3 {[%clk 0:03:05.3]} 13... Rb8 {[%clk 0:02:58]} 14. b3 {[%clk
0:03:05.3]} 14... Qa5 {[%clk 0:02:58.3]} 15. Ne2 {[%clk 0:03:02.2]} 15... e5
{[%clk 0:02:46.1]} 16. fxe5 {[%clk 0:03:00.9]} 16... Qxe5 {[%clk 0:02:40.4]} 17.
Bf4 {[%clk 0:02:57]} 17... Qe6 {[%clk 0:02:39.7]} 18. Nd4 {[%clk 0:02:56.8]}
18... Qd7 {[%clk 0:02:39.4]} 19. Re1 {[%clk 0:02:54.7]} 19... Bb7 {[%clk
0:02:33.8]} 20. Nf5 {[%clk 0:02:53.9]} 20... Bf8 {[%clk 0:02:33]} 21. Bxd6
{[%clk 0:02:53.7]} 21... Rbd8 {[%clk 0:02:13.8]} 22. Bxf8 {[%clk 0:02:54.1]}
22... Qxd1 {[%clk 0:02:10.8]} 23. Raxd1 {[%clk 0:02:55.2]} 23... Kxf8 {[%clk
0:02:12]} 24. e5 {[%clk 0:02:50.3]} 24... Nd5 {[%clk 0:02:03]} 25. Bxd5 {[%clk
0:02:50.5]} 25... cxd5 {[%clk 0:02:03]} 26. Nd6 {[%clk 0:02:49.7]} 26... Re7
{[%clk 0:02:03.9]} 27. Kg1 {[%clk 0:02:43.5]} 27... Ba8 {[%clk 0:01:55.6]} 28.
Kf2 {[%clk 0:02:43.9]} 28... f6 {[%clk 0:01:56.4]} 29. Nf5 {[%clk 0:02:25.4]}
29... Rxe5 {[%clk 0:01:56.7]} 30. Ne3 {[%clk 0:02:17.3]} 30... d4 {[%clk
0:01:45.8]} 31. Nc4 {[%clk 0:02:17.3]} 31... Rf5+ {[%clk 0:01:41.7]} 32. Kg1
{[%clk 0:02:14.6]} 32... Rg5 {[%clk 0:01:42]} 33. g3 {[%clk 0:02:15.5]} 33...
Rf5 {[%clk 0:01:39.2]} 34. Re6 {[%clk 0:02:15.3]} 34... Bd5 {[%clk 0:01:35.7]}
35. Rxd4 {[%clk 0:02:09.3]} 35... Rc8 {[%clk 0:01:36]} 36. Rxa6 {[%clk
0:02:02.2]} 36... Bxc4 {[%clk 0:01:36.5]} 37. Rxc4 {[%clk 0:02:03.5]} 37... Rxc4
{[%clk 0:01:36.8]} 38. bxc4 {[%clk 0:02:04.5]} 38... Rc5 {[%clk 0:01:38.4]} 39.
Ra8+ {[%clk 0:01:55.1]} 39... Kf7 {[%clk 0:01:38.7]} 40. a5 {[%clk 0:01:56.1]}
40... Rxc4 {[%clk 0:01:39.8]} 41. a6 {[%clk 0:01:57.7]} 41... Rxc2 {[%clk
0:01:41.1]} 42. a7 {[%clk 0:01:59.3]} 42... Ra2 {[%clk 0:01:38.8]} 43. Kf1
{[%clk 0:01:59.3]} 43... Kg6 {[%clk 0:01:39]} 44. Ke1 {[%clk 0:01:59.8]} 44...
h5 {[%clk 0:01:35.4]} 45. Kd1 {[%clk 0:01:59.5]} 45... Kg5 {[%clk 0:01:36.1]}
46. Ke1 {[%clk 0:01:58]} 46... Kg4 {[%clk 0:01:36.8]} 47. Kf1 {[%clk 0:01:59.2]}
47... Kf3 {[%clk 0:01:36.5]} 48. Ke1 {[%clk 0:01:59.1]} 48... Kg2 {[%clk
0:01:33.8]} 49. Kd1 {[%clk 0:01:53.1]} 49... Kxh2 {[%clk 0:01:34.6]} 50. g4
{[%clk 0:01:54.3]} 50... h4 {[%clk 0:01:31.7]} 51. Rh8 {[%clk 0:01:54]} 51...
Rxa7 {[%clk 0:01:30]} 52. Rxh4+ {[%clk 0:01:54.6]} 52... Kg3 {[%clk 0:01:31.5]}
53. Rh7 {[%clk 0:01:52.8]} 53... Kxg4 {[%clk 0:01:32.2]} 54. Ke2 {[%clk
0:01:54.3]} 54... f5 {[%clk 0:01:32.5]} 55. Kf2 {[%clk 0:01:55]} 55... Ra2+
{[%clk 0:01:32]} 56. Ke3 {[%clk 0:01:56.5]} 56... g5 {[%clk 0:01:32.4]} 57. Rh1
{[%clk 0:01:57.7]} 57... f4+ {[%clk 0:01:33]} 58. Kd3 {[%clk 0:01:58.2]} 58...
Kf3 {[%clk 0:01:28.5]} 59. Rf1+ {[%clk 0:01:58.8]} 59... Rf2 {[%clk 0:01:26.9]}
60. Rg1 {[%clk 0:02:00]} 60... g4 {[%clk 0:01:27.3]} 61. Kd4 {[%clk 0:02:01]}
61... g3 {[%clk 0:01:28]} 62. Ke5 {[%clk 0:02:01.8]} 62... Re2+ {[%clk
0:01:26.5]} 63. Kf5 {[%clk 0:02:02.6]} 63... Kf2 {[%clk 0:01:25.5]} 64. Rh1
{[%clk 0:02:02.7]} 64... f3 {[%clk 0:01:22.4]} 65. Kf4 {[%clk 0:02:02]} 65... g2
{[%clk 0:01:21.9]} 66. Rh2 {[%clk 0:02:00]} 66... Ra2 {[%clk 0:01:21.9]} 67. Kg4
{[%clk 0:01:57.5]} 67... Ra4+ {[%clk 0:01:22.3]} 68. Kf5 {[%clk 0:01:58.2]}
68... Kg3 {[%clk 0:01:22.3]} 69. Rh5 {[%clk 0:01:58.3]} 69... g1=Q {[%clk
0:01:21.6]} 70. Rg5+ {[%clk 0:01:59.1]} 70... Kf2 {[%clk 0:01:22.6]} 71. Rh5
{[%clk 0:01:57.7]} 71... Qb1+ {[%clk 0:01:22.3]} 72. Kg5 {[%clk 0:01:58.6]}
72... Qb5+ {[%clk 0:01:22.4]} 73. Kh6 {[%clk 0:01:59.1]} 73... Ra6+ {[%clk
0:01:23.7]} 74. Kg7 {[%clk 0:01:59.9]} 74... Qb7+ {[%clk 0:01:24.8]} 75. Kh8
{[%clk 0:02:01.1]} 75... Ra8# {[%clk 0:01:26.1]} 0-1